fUSD/lending_fUSD_20240224
["ID","MTS","AMOUNT","RATE_DAILY","PERIOD"]
[315032465,1708738239117,-324.0,0.00028241,2]
[315032466,1708738239127,-5399.57,0.00028291,2]
[315032467,1708738239136,-1722.69,0.00028347,2]
[315032468,1708738239146,-38747.81761869,0.00028476,2]
[315032469,1708738239155,-1722.69,0.00028505,2]
[315032470,1708738239164,-1722.69,0.00028664,2]
[315032471,1708738239173,-275.98,0.000288,2]
[315032472,1708738239181,-1722.69,0.00028822,2]
[315032473,1708738239191,-167.49,0.00028977,2]
[315032474,1708738239200,-555.0,0.00029,2]
[315032475,1708738239210,-850.0,0.00029,3]
[315032476,1708738239219,-1437.76,0.00029,2]
[315032477,1708738239228,-324.0,0.00029611,2]
[315032478,1708738239238,-555.0,0.000298,2]
[315032479,1708738239247,-5399.57,0.00029935,2]
[315032480,1708738239257,-155.0,0.0003,4]
[315032481,1708738239267,-430.7049708,0.0003,2]
[315032482,1708738239276,-72564.75384289,0.0003,4]
[315032483,1708738239286,-1558.88499285,0.0003,4]
[315032484,1708738239295,-1630.0,0.000301,2]
[315032485,1708738239304,-150.0,0.00030137,2]
[315032486,1708738239314,-555.0,0.0003029,2]
[315032487,1708738239322,-344.6,0.00030402,2]
[315032488,1708738239331,-150.0,0.00030714,2]
[315032489,1708738239341,-167.49,0.00030788,2]
[315032490,1708738239350,-324.0,0.00030981,2]
[315032491,1708738239360,-900.0,0.00031,3]
[315032492,1708738239370,-9900.0,0.00031,2]
[315032493,1708738239379,-26755.0,0.00031,2]
[315032494,1708738239388,-3860.0,0.00031,2]
[315032495,1708738239397,-150.0,0.00031291,2]
[315032496,1708738239407,-38747.81761869,0.00031465,2]
[315032497,1708738239417,-1500.0,0.000315,2]
[315032498,1708738239427,-1950.68,0.00031586,2]
[315032499,1708738239436,-1000.0,0.00031635,2]
[315032500,1708738239445,-297341.338381,0.000318,3]
[315032501,1708738239454,-196.93,0.00031858,2]
[315032502,1708738239463,-150.0,0.00031867,2]
[315032503,1708738239472,-1000.0,0.00032,30]
[315032504,1708738239481,-555.0,0.0003227,2]
[315032505,1708738239490,-324.0,0.00032351,2]
[315032506,1708738239499,-150.0,0.00032444,2]
[315032507,1708738239509,-253.50137317,0.00032448,2]
[315032508,1708738239518,-167.49,0.00032599,2]
[315032509,1708738239527,-788.15,0.00032876,2]
[315032510,1708738239536,-161.72,0.00032877,2]
[315032511,1708738239546,-250.0,0.00032877,2]
[315032512,1708738239555,-150.0,0.00032877,2]
[315032513,1708738239564,-319.14,0.00032877,2]
[315032514,1708738239573,-161.65,0.00032877,2]
[315032515,1708738239582,-55755.14,0.00032877,2]
[315032516,1708738239591,-555.0,0.000329,2]
[315032517,1708738239600,-8000.0,0.000329,2]
[315032518,1708738239610,-1630.0,0.000329,2]
[315032519,1708738239620,-154.20563152,0.00032971,7]
[315032520,1708738239629,-950.0,0.00033,3]
[315032521,1708738239640,-150.0,0.00033021,2]
[315032522,1708738239651,-518.01970828,0.00033103,7]
[315032523,1708738239661,-150.611562,0.0003311,7]
[315032524,1708738239671,-151.0,0.00033122,120]
[315032525,1708738239680,-150.611562,0.00033222,7]
[315032526,1708738239689,-1748.63459017,0.00033256,4]
[315032527,1708738239698,-13676.78419889,0.00033256,7]
[315032528,1708738239708,-22207.16605425,0.00033256,7]
[315032529,1708738239717,-788.15,0.00033287,2]
[315032530,1708738239728,-3408.12970787,0.00033379,7]
[315032531,1708738239737,-1533.65836854,0.00033379,7]
[315032532,1708738239747,-214.23419471,0.00033379,5]
[315032533,1708738239756,-424.41349707,0.00033379,7]
[315032534,1708738239766,-4729.95189111,0.00033379,7]
[315032535,1708738239775,-155.76031538,0.00033383,7]
[315032536,1708738239784,-500.0,0.00033424,2]
[315032537,1708738239794,-450.75,0.000335,2]
[315032538,1708738239803,-450.75,0.000335,2]
[315032539,1708738239812,-450.75,0.000335,2]
[315032540,1708738239822,-450.75,0.000335,2]
[315032541,1708738239831,-450.75,0.000335,2]
[315032542,1708738239841,-450.75,0.000335,2]
[315032543,1708738239850,-450.75,0.000335,2]
[315032544,1708738239860,-450.75,0.000335,2]
[315032545,1708738239870,-450.75,0.000335,2]
[315032546,1708738239879,-450.75,0.000335,2]
[315032547,1708738239888,-450.75,0.000335,2]
[315032548,1708738239897,-450.75,0.000335,2]
[315032549,1708738239906,-450.75,0.000335,2]
[315032550,1708738239915,-450.75,0.000335,2]
[315032551,1708738239925,-450.75,0.000335,2]
[315032552,1708738239934,-450.75,0.000335,2]
[315032553,1708738239944,-450.75,0.000335,2]
[315032554,1708738239953,-450.75,0.000335,2]
[315032555,1708738239962,-450.75,0.000335,2]
[315032556,1708738239971,-450.75,0.000335,2]
[315032557,1708738239990,-150.0,0.00033598,2]
[315032558,1708738240002,-788.15,0.00033698,2]
[315032559,1708738240011,-638.0,0.00033721,2]
[315032560,1708738240021,-150.0,0.00033742,2]
[315032561,1708738240030,-151.0,0.00033798,30]
[315032562,1708738240040,-151.75670967,0.000339,2]
[315032563,1708738240049,-151.75670967,0.000339,2]
[315032564,1708738240058,-151.75670967,0.000339,2]
[315032565,1708738240068,-151.75670967,0.000339,2]
[315032566,1708738240077,-151.75670967,0.000339,2]
[315032567,1708738240087,-151.75670967,0.000339,2]
[315032568,1708738240097,-150.1,0.00033913,2]
[315032569,1708738240106,-157.51738774,0.0003394,7]
[315032570,1708738240116,-500.0,0.00034109,2]
[315032571,1708738240126,-788.15,0.00034109,2]
[315032572,1708738240136,-150.0,0.00034175,2]
[315032573,1708738240146,-8000.0,0.000342,2]
[315032574,1708738240155,-38747.81761869,0.00034454,2]
[315032575,1708738240165,-151.0,0.00034487,7]
[315032576,1708738240174,-768.374278,0.0003452,2]
[315032577,1708738240184,-542.323438,0.0003452,2]
[315032578,1708738240193,-17660.368637,0.0003452,2]
[315032579,1708738240203,-1532.666065,0.0003452,2]
[315032580,1708738240213,-672.327493,0.0003452,2]
[315032581,1708738240222,-6397.678234,0.0003452,2]
[315032582,1708738240232,-480.233923,0.0003452,2]
[315032583,1708738240241,-384.187139,0.0003452,2]
[315032584,1708738240251,-5118.142587,0.0003452,2]
[315032585,1708738240260,-480.233923,0.0003452,2]
[315032586,1708738240270,-6397.678234,0.0003452,2]
[315032587,1708738240280,-788.15,0.0003452,2]
[315032588,1708738240289,-8323.21,0.00034521,2]
[315032589,1708738240299,-154.20563152,0.00034606,7]
[315032590,1708738240309,-150.0,0.00034607,2]
[315032591,1708738240319,-19999.99,0.00034649,2]
[315032592,1708738240329,-150.0,0.00034751,2]
[315032593,1708738240339,-1152.561417,0.00034794,2]
[315032594,1708738240349,-813.485158,0.00034794,2]
[315032595,1708738240358,-26490.552956,0.00034794,2]
[315032596,1708738240368,-2298.999097,0.00034794,2]
[315032597,1708738240379,-1008.491239,0.00034794,2]
[315032598,1708738240388,-9596.517351,0.00034794,2]
[315032599,1708738240398,-720.350885,0.00034794,2]
[315032600,1708738240407,-576.280708,0.00034794,2]
[315032601,1708738240416,-7677.213881,0.00034794,2]
[315032602,1708738240425,-720.350885,0.00034794,2]
[315032603,1708738240434,-9596.517351,0.00034794,2]
[315032604,1708738240443,-573.5220317,0.00034794,2]
[315032605,1708738240453,-2270.50107918,0.000349,2]
[315032606,1708738240462,-2270.50107906,0.000349,2]
[315032607,1708738240471,-2270.50107906,0.000349,2]
[315032608,1708738240481,-2270.50107906,0.000349,2]
[315032609,1708738240490,-2270.50107906,0.000349,2]
[315032610,1708738240499,-2270.50107906,0.000349,2]
[315032611,1708738240509,-2270.50107906,0.000349,2]
[315032612,1708738240518,-2270.50107906,0.000349,2]
[315032613,1708738240527,-1536.748556,0.00034931,2]
[315032614,1708738240537,-1084.646877,0.00034931,2]
[315032615,1708738240547,-35320.737274,0.00034931,2]
[315032616,1708738240556,-3065.33213,0.00034931,2]
[315032617,1708738240566,-1344.654986,0.00034931,2]
[315032618,1708738240574,-12795.356468,0.00034931,2]
[315032619,1708738240584,-960.467847,0.00034931,2]
[315032620,1708738240593,-768.374278,0.00034931,2]
[315032621,1708738240603,-10236.285174,0.00034931,2]
[315032622,1708738240612,-960.467847,0.00034931,2]
[315032623,1708738240622,-12795.356468,0.00034931,2]
[315032624,1708738240631,-788.15,0.00034931,2]
[315032625,1708738240642,-586.90975074,0.00035,4]
[315032626,1708738240654,-229.20433756,0.00035,7]
[315032627,1708738240663,-1000.0,0.00035,3]
[315032628,1708738240673,-162.7693371,0.00035,2]
[315032629,1708738240683,-27823.06511233,0.00035,2]
[315032630,1708738240693,-196.93,0.00035044,2]
[315032631,1708738240703,-1920.935695,0.00035068,2]
[315032632,1708738240712,-1355.808597,0.00035068,2]
[315032633,1708738240722,-44150.921593,0.00035068,2]
[315032634,1708738240733,-3831.665163,0.00035068,2]
[315032635,1708738240743,-1680.818733,0.00035068,2]
[315032636,1708738240753,-15994.195585,0.00035068,2]
[315032637,1708738240762,-1200.584809,0.00035068,2]
[315032638,1708738240771,-960.467848,0.00035068,2]
[315032639,1708738240781,-12795.356468,0.00035068,2]
[315032640,1708738240790,-1200.584809,0.00035068,2]
[315032641,1708738240799,-15994.195585,0.00035068,2]
[315032642,1708738240809,-638.0,0.0003509,2]
[315032643,1708738240819,-151.0,0.00035191,4]
[315032644,1708738240829,-361.80762653,0.00035227,2]
[315032645,1708738240838,-151.75670967,0.00035253,2]
[315032646,1708738240847,-555.0,0.0003529,2]
[315032647,1708738240857,-450.75,0.000353,3]
[315032648,1708738240867,-450.75,0.000353,3]
[315032649,1708738240878,-450.75,0.000353,3]
[315032650,1708738240888,-450.75,0.000353,3]
[315032651,1708738240897,-450.75,0.000353,3]
[315032652,1708738240906,-450.75,0.000353,3]
[315032653,1708738240916,-450.75,0.000353,3]
[315032654,1708738240925,-450.75,0.000353,3]
[315032655,1708738240935,-450.75,0.000353,3]
[315032656,1708738240944,-450.75,0.000353,3]
[315032657,1708738240954,-450.75,0.000353,3]
[315032658,1708738240964,-450.75,0.000353,3]
[315032659,1708738240973,-450.75,0.000353,3]
[315032660,1708738240983,-450.75,0.000353,3]
[315032661,1708738240992,-450.75,0.000353,3]
[315032662,1708738241002,-450.75,0.000353,3]
[315032663,1708738241011,-450.75,0.000353,3]
[315032664,1708738241020,-450.75,0.000353,3]
[315032665,1708738241030,-450.75,0.000353,3]
[315032666,1708738241040,-450.75,0.000353,3]
[315032667,1708738241050,-157.51738774,0.00035312,7]
[315032668,1708738241059,-150.0,0.00035328,2]
[315032669,1708738241068,-2270.50107906,0.00035331,2]
[315032670,1708738241077,-2689.309973,0.00035342,2]
[315032671,1708738241086,-1898.132036,0.00035342,2]
[315032672,1708738241095,-61811.29023,0.00035342,2]
[315032673,1708738241104,-5364.331228,0.00035342,2]
[315032674,1708738241114,-2353.146226,0.00035342,2]
[315032675,1708738241125,-22391.873819,0.00035342,2]
[315032676,1708738241147,-1680.818733,0.00035342,2]
[315032677,1708738241156,-1344.654987,0.00035342,2]
[315032678,1708738241168,-17913.499056,0.00035342,2]
[315032679,1708738241177,-1680.818733,0.00035342,2]
[315032680,1708738241186,-22391.873819,0.00035342,2]
[315032681,1708738241195,-788.15,0.00035342,2]
[315032682,1708738241205,-150.0,0.00035472,2]
[315032683,1708738241214,-3073.497112,0.00035589,2]
[315032684,1708738241223,-2169.293755,0.00035589,2]
[315032685,1708738241236,-70641.474549,0.00035589,2]
[315032687,1708738241246,-6130.66426,0.00035589,2]
[315032689,1708738241255,-2689.309973,0.00035589,2]
[315032691,1708738241264,-25590.712936,0.00035589,2]
[315032693,1708738241273,-1920.935695,0.00035589,2]
[315032695,1708738241283,-1536.748556,0.00035589,2]
[315032697,1708738241292,-20472.570349,0.00035589,2]
[315032699,1708738241302,-1920.935695,0.00035589,2]
[315032701,1708738241311,-25590.712936,0.00035589,2]
[315032703,1708738241320,-1000.0,0.00035589,2]
[315032705,1708738241329,-2250.0,0.000356,2]
[315032707,1708738241339,-8000.0,0.000356,2]
[315032709,1708738241349,-1672.76,0.00035616,2]
[315032711,1708738241358,-253.50137317,0.00035698,2]
[315032714,1708738241368,-3416.47,0.000357,7]
[315032716,1708738241379,-2700.05,0.000357,7]
[315032718,1708738241388,-788.15,0.00035753,2]
[315032720,1708738241397,-8323.21,0.00035798,2]
[315032722,1708738241407,-1000.0,0.00035799,2]
[315032724,1708738241416,-3191.8,0.000358,7]
[315032726,1708738241425,-150.0,0.00035905,2]
[315032728,1708738241434,-151.0,0.00035909,2]
[315032730,1708738241444,-788.15,0.00036164,2]
[315032732,1708738241453,-555.0,0.0003629,2]
[315032734,1708738241463,-2116.86101888,0.00036301,30]
[315032736,1708738241472,-150.0,0.00036337,2]
[315032738,1708738241481,-638.0,0.0003646,7]
[315032740,1708738241491,-150.0,0.00036482,2]
[315032742,1708738241500,-161.65,0.0003653,2]
[315032744,1708738241509,-788.15,0.00036575,2]
[315032746,1708738241518,-156.22422164,0.00036783,4]
[315032748,1708738241528,-159.39088985,0.00036856,7]
[315032750,1708738241537,-2270.50107906,0.0003691,2]
[315032752,1708738241546,-666.0,0.00036986,2]
[315032754,1708738241555,-788.15,0.00036986,2]
[315032756,1708738241564,-158.44336474,0.00036998,7]
[315032758,1708738241574,-1050.0,0.00037,3]
[315032760,1708738241583,-6469.0,0.00037,2]
[315032762,1708738241592,-3416.47,0.00037,7]
[315032764,1708738241602,-2700.05,0.00037,7]
[315032766,1708738241612,-150.0,0.00037059,2]
[315032768,1708738241622,-8323.21,0.00037075,2]
[315032770,1708738241631,-155.007168,0.00037185,2]
[315032772,1708738241642,-165.995602,0.00037185,2]
[315032773,1708738241654,-189.835385,0.00037185,2]
[315032774,1708738241663,-155.007164,0.00037185,2]
[315032775,1708738241673,-199.194722,0.00037185,2]
[315032776,1708738241682,-156.90607,0.00037185,2]
[315032778,1708738241692,-189.835385,0.00037185,2]
[315032780,1708738241701,-158.84317,0.00037185,2]
[315032782,1708738241710,-155.007164,0.00037185,2]
[315032783,1708738241719,-181.731711,0.00037185,2]
[315032784,1708738241730,-450.75,0.000372,3]
[315032785,1708738241741,-450.75,0.000372,3]
[315032786,1708738241750,-450.75,0.000372,3]
[315032787,1708738241759,-450.75,0.000372,3]
[315032788,1708738241769,-450.75,0.000372,3]
[315032789,1708738241779,-450.75,0.000372,3]
[315032790,1708738241789,-450.75,0.000372,3]
[315032791,1708738241799,-450.75,0.000372,3]
[315032792,1708738241809,-450.75,0.000372,3]
[315032793,1708738241818,-450.75,0.000372,3]
[315032794,1708738241828,-450.75,0.000372,3]
[315032795,1708738241837,-450.75,0.000372,3]
[315032796,1708738241847,-450.75,0.000372,3]
[315032797,1708738241856,-450.75,0.000372,3]
[315032798,1708738241867,-450.75,0.000372,3]
[315032799,1708738241879,-450.75,0.000372,3]
[315032800,1708738241889,-450.75,0.000372,3]
[315032801,1708738241899,-450.75,0.000372,3]
[315032802,1708738241910,-450.75,0.000372,3]
[315032803,1708738241920,-450.75,0.000372,3]
[315032804,1708738241929,-150.0,0.00037203,2]
[315032805,1708738241939,-154.20563152,0.00037281,7]
[315032806,1708738241948,-151.75670967,0.00037346,2]
[315032807,1708738241958,-155.57626885,0.00037358,7]
[315032808,1708738241967,-157.51738774,0.00037387,7]
[315032809,1708738241976,-788.15,0.00037397,2]
[315032810,1708738241986,-38747.81761869,0.00037442,2]
[315032811,1708738241995,-150.0,0.00037635,2]
[315032812,1708738242005,-199.194722,0.0003765,2]
[315032813,1708738242014,-180.0,0.00037671,2]
[315032814,1708738242024,-165.995602,0.00037805,2]
[315032815,1708738242033,-788.15,0.00037808,2]
[315032816,1708738242043,-638.0,0.0003783,7]
[315032817,1708738242052,-154.20563152,0.00037873,7]
[315032818,1708738242061,-3191.8,0.000379,7]
[315032819,1708738242070,-692653.166414,0.000379,3]
[315032820,1708738242079,-514.0,0.00038,2]
[315032821,1708738242089,-3416.47,0.00038,7]
[315032822,1708738242098,-2700.05,0.00038,7]
[315032823,1708738242107,-150.0,0.00038068,2]
[315032824,1708738242116,-199.194722,0.00038115,2]
[315032825,1708738242126,-189.835385,0.00038115,2]
[315032826,1708738242135,-155.007164,0.00038115,2]
[315032827,1708738242145,-150.0,0.00038212,2]
[315032828,1708738242155,-788.15,0.00038219,2]
[315032829,1708738242164,-8323.21,0.00038352,2]
[315032830,1708738242173,-201.70261338,0.00038356,2]
[315032831,1708738242182,-3272.0,0.00038356,15]
[315032832,1708738242191,-4489.58,0.0003836,2]
[315032834,1708738242395,-6469.33730538,0.000384,2]
[315032835,1708738242408,-191.60846217,0.00038403,2]
[315032836,1708738242417,-597.69811164,0.00038403,2]
[315032837,1708738242428,-165.995602,0.00038425,2]
[315032838,1708738242439,-2270.50107906,0.00038488,2]
[315032839,1708738242448,-1008.4955,0.00038499,2]
[315032840,1708738242457,-5800.0,0.00038518,2]
[315032841,1708738242466,-199.194722,0.0003858,2]
[315032844,1708738242475,-788.15,0.0003863,2]
[315032846,1708738242483,-58000.0,0.00038641,3]
[315032847,1708738242493,-150.0,0.00038789,2]
[315032848,1708738242502,-150.0,0.00038933,2]
[315032849,1708738242511,-154.20563152,0.00038976,7]
[315032850,1708738242520,-1100.0,0.00039,3]
[315032851,1708738242530,-450.75,0.00039,3]
[315032852,1708738242540,-450.75,0.00039,3]
[315032853,1708738242551,-450.75,0.00039,3]
[315032854,1708738242562,-450.75,0.00039,3]
[315032855,1708738242571,-450.75,0.00039,3]
[315032856,1708738242580,-450.75,0.00039,3]
[315032857,1708738242589,-450.75,0.00039,3]
[315032858,1708738242599,-450.75,0.00039,3]
[315032859,1708738242610,-450.75,0.00039,3]
[315032860,1708738242619,-450.75,0.00039,3]
[315032861,1708738242630,-450.75,0.00039,3]
[315032862,1708738242639,-450.75,0.00039,3]
[315032863,1708738242650,-450.75,0.00039,3]
[315032864,1708738242661,-450.75,0.00039,3]
[315032865,1708738242670,-450.75,0.00039,3]
[315032866,1708738242680,-450.75,0.00039,3]
[315032867,1708738242690,-450.75,0.00039,3]
[315032868,1708738242701,-450.75,0.00039,3]
[315032869,1708738242710,-450.75,0.00039,3]
[315032870,1708738242720,-450.75,0.00039,3]
[315032871,1708738242730,-10004.88,0.00039,2]
[315032872,1708738242739,-788.15,0.00039041,2]
[315032873,1708738242748,-189.835385,0.00039045,2]
[315032874,1708738242758,-165.995602,0.00039045,2]
[315032875,1708738242767,-199.194722,0.00039045,2]
[315032876,1708738242777,-189.835385,0.00039045,2]
[315032877,1708738242786,-155.007164,0.00039045,2]
[315032878,1708738242796,-152.0,0.000392,7]
[315032879,1708738242805,-3191.8,0.000392,7]
[315032880,1708738242814,-3416.47,0.000392,7]
[315032881,1708738242824,-2700.05,0.000392,7]
[315032882,1708738242833,-638.0,0.000392,7]
[315032883,1708738242842,-1000.0,0.0003926,2]
[315032884,1708738242851,-483.39,0.00039265,10]
[315032885,1708738242861,-751.38,0.00039265,10]
[315032886,1708738242870,-1705.744602,0.00039275,30]
[315032887,1708738242881,-9819.0,0.00039275,60]
[315032888,1708738242890,-153.54957341,0.00039275,30]
[315032889,1708738242899,-156.57354394,0.0003935,7]
[315032890,1708738242909,-150.0,0.00039366,2]
[315032891,1708738242918,-155.9447501,0.0003942,30]
[315032892,1708738242927,-151.75670967,0.00039438,4]
[315032893,1708738242937,-788.15,0.00039452,2]
[315032894,1708738242947,-154.20563152,0.00039467,7]
[315032895,1708738242956,-5017.79,0.00039508,7]
[315032896,1708738242966,-5017.79,0.00039508,7]
[315032897,1708738242975,-5017.79,0.00039508,7]
[315032898,1708738242984,-5017.79,0.00039508,7]
[315032899,1708738242994,-1000.0,0.00039544,2]
[315032900,1708738243003,-154.20563152,0.00039572,7]
[315032901,1708738243012,-6892.55022949,0.000396,2]
[315032902,1708738243021,-8323.21,0.0003963,2]
[315032903,1708738243030,-1000.0,0.00039699,2]
[315032904,1708738243039,-1656.92566322,0.000397,2]
[315032905,1708738243049,-5017.79,0.00039781,7]
[315032906,1708738243058,-5017.79,0.00039781,7]
[315032907,1708738243067,-150.0,0.00039798,2]
[315032908,1708738243076,-788.15,0.00039863,2]
[315032910,1708738243085,-151.0,0.00039899,2]
[315032911,1708738243095,-250.49088,0.00039899,2]
[315032912,1708738243104,-361.48224482,0.000399,2]
[315032913,1708738243113,-4940.23470742,0.000399,2]
[315032914,1708738243123,-4940.23470742,0.000399,2]
[315032915,1708738243132,-4940.23470742,0.000399,2]
[315032916,1708738243141,-4940.23470742,0.000399,2]
[315032917,1708738243150,-4940.23470742,0.000399,2]
[315032918,1708738243159,-4940.23470742,0.000399,2]
[315032919,1708738243168,-4940.23470742,0.000399,2]
[315032920,1708738243177,-4940.23470742,0.000399,2]
[315032921,1708738243186,-4940.23470742,0.000399,2]
[315032922,1708738243195,-4940.23470742,0.000399,2]
[315032923,1708738243205,-4940.23470742,0.000399,2]
[315032924,1708738243215,-4940.23470742,0.000399,2]
[315032925,1708738243224,-4940.23470742,0.000399,2]
[315032926,1708738243233,-4940.23470742,0.000399,2]
[315032927,1708738243244,-150.0,0.00039942,2]
[315032928,1708738243253,-25077.58481992,0.0004,30]
[315032929,1708738243263,-500000.0,0.0004,4]
[315032930,1708738243273,-12424.30947067,0.0004,15]
[315032931,1708738243282,-255.0,0.0004,12]
[315032932,1708738243291,-300.0,0.0004,41]
[315032933,1708738243300,-255.0,0.0004,12]
[315032934,1708738243310,-1000.0,0.0004,2]
[315032935,1708738243319,-313.04,0.0004,2]
[315032936,1708738243328,-5017.79,0.00040055,7]
[315032937,1708738243338,-5017.79,0.00040055,7]
[315032938,1708738243347,-2270.50107906,0.00040067,5]
[315032939,1708738243357,-161.65,0.00040183,2]
[315032940,1708738243369,-788.15,0.00040273,2]
[315032941,1708738243380,-3297.81396869,0.00040297,2]
[315032942,1708738243390,-3191.8,0.000403,7]
[315032943,1708738243399,-3416.47,0.000403,7]
[315032944,1708738243408,-2700.05,0.000403,7]
[315032945,1708738243417,-5017.79,0.00040328,7]
[315032946,1708738243426,-5017.79,0.00040328,7]
[315032947,1708738243435,-666.0,0.0004041,2]
[315032948,1708738243445,-38747.81761869,0.00040431,2]
[315032949,1708738243455,-150.0,0.00040519,2]
[315032950,1708738243464,-150.0,0.00040547,2]
[315032951,1708738243473,-302.0,0.0004057,4]
[315032952,1708738243483,-1000.0,0.000406,15]
[315032953,1708738243493,-500.0,0.000406,15]
[315032954,1708738243503,-154.20563152,0.00040601,30]
[315032955,1708738243512,-5017.79,0.00040601,7]
[315032956,1708738243522,-5017.79,0.00040601,7]
[315032957,1708738243531,-150.0,0.00040663,2]
[315032958,1708738243541,-788.15,0.00040684,2]
[315032959,1708738243551,-1000.0,0.00040733,2]
[315032960,1708738243561,-5017.79,0.00040874,7]
[315032961,1708738243571,-5017.79,0.00040874,7]
[315032962,1708738243580,-155.59752133,0.00040879,30]
[315032963,1708738243590,-1000.0,0.000409,15]
[315032964,1708738243599,-1000.0,0.000409,15]
[315032965,1708738243612,-450.75,0.000409,4]
[315032966,1708738243621,-450.75,0.000409,4]
[315032967,1708738243634,-450.75,0.000409,4]
[315032968,1708738243645,-450.75,0.000409,4]
[315032969,1708738243656,-450.75,0.000409,4]
[315032970,1708738243666,-450.75,0.000409,4]
[315032971,1708738243675,-450.75,0.000409,4]
[315032972,1708738243685,-450.75,0.000409,4]
[315032973,1708738243694,-450.75,0.000409,4]
[315032974,1708738243704,-450.75,0.000409,4]
[315032975,1708738243713,-450.75,0.000409,4]
[315032976,1708738243723,-450.75,0.000409,4]
[315032977,1708738243733,-450.75,0.000409,4]
[315032978,1708738243742,-450.75,0.000409,4]
[315032979,1708738243752,-450.75,0.000409,4]
[315032980,1708738243762,-450.75,0.000409,4]
[315032981,1708738243771,-450.75,0.000409,4]
[315032982,1708738243781,-450.75,0.000409,4]
[315032983,1708738243790,-450.75,0.000409,4]
[315032984,1708738243799,-450.75,0.000409,4]
[315032985,1708738243809,-5336.97149579,0.00041,30]
[315032986,1708738243818,-20222.29638452,0.00041,14]
[315032987,1708738243828,-7073.00176482,0.00041,7]
[315032988,1708738243837,-212.55349277,0.00041,33]
[315032989,1708738243846,-1150.0,0.00041,3]
[315032990,1708738243856,-200.0,0.00041,60]
[315032991,1708738243865,-900.0,0.00041,42]
[315032992,1708738243876,-300.0,0.00041,14]
[315032993,1708738243885,-163.0,0.00041,14]
[315032994,1708738243895,-650.0,0.0004107,3]
[315032995,1708738243904,-1000.0,0.00041095,30]
[315032996,1708738243914,-1390.13,0.00041095,2]
[315032997,1708738243924,-1390.13,0.00041095,2]
[315032998,1708738243934,-1390.13,0.00041095,2]
[315032999,1708738243943,-1390.13,0.00041095,2]
[315033000,1708738243952,-1390.13,0.00041095,2]
[315033001,1708738243961,-1390.13,0.00041095,2]
[315033002,1708738243970,-1390.13,0.00041095,2]
[315033003,1708738243980,-1390.13,0.00041095,2]
[315033004,1708738243989,-1390.13,0.00041095,2]
[315033005,1708738243998,-1390.13,0.00041095,2]
[315033006,1708738244008,-1390.13,0.00041095,2]
[315033007,1708738244017,-1390.13,0.00041095,2]
[315033008,1708738244027,-1390.13,0.00041095,2]
[315033009,1708738244037,-1390.13,0.00041095,2]
[315033010,1708738244046,-1390.13,0.00041095,2]
[315033011,1708738244056,-1390.13,0.00041095,2]
[315033012,1708738244065,-1390.13,0.00041095,2]
[315033013,1708738244075,-1390.13,0.00041095,2]
[315033014,1708738244085,-1390.13,0.00041095,2]
[315033015,1708738244094,-1390.13,0.00041095,2]
[315033016,1708738244103,-1390.13,0.00041095,2]